fUSD/lending_fUSD_20251117
["ID","MTS","AMOUNT","RATE_DAILY","PERIOD"]
[394255308,1763409033282,-1004.81,0.0003744,2]
[394255310,1763409033292,-1250.0,0.000378,2]
[394255311,1763409033302,-872.8,0.0003788,2]
[394255313,1763409033312,-166.66,0.0003812,2]
[394255315,1763409033326,-1000.0,0.00038219,120]
[394255317,1763409033337,-1000.0,0.00038219,120]
[394255319,1763409033347,-1000.0,0.00038219,120]
[394255321,1763409033359,-1000.0,0.00038219,120]
[394255322,1763409033373,-644.1989899,0.00038219,120]
[394255324,1763409033383,-1219.56,0.00038382,2]
[394255326,1763409033392,-160.65,0.00038764,120]
[394255328,1763409033404,-160.65,0.00038864,120]
[394255329,1763409033413,-1287.3515,0.00038888,30]
[394255331,1763409033422,-160.65,0.00038964,120]
[394255333,1763409033432,-160.65,0.00039064,120]
[394255335,1763409033442,-450.0,0.00039076,7]
[394255336,1763409033451,-160.65,0.00039164,120]
[394255338,1763409033461,-500.0,0.00039205,2]
[394255340,1763409033470,-872.8,0.00039249,2]
[394255342,1763409033479,-160.65,0.00039264,120]
[394255344,1763409033489,-168.0,0.00039316,2]
[394255365,1763409033716,-160.65,0.00039364,120]
[394255366,1763409033726,-166.66,0.00039378,2]
[394255368,1763409033736,-1219.56,0.00039419,2]
[394255370,1763409033746,-160.67,0.00039464,120]
[394255372,1763409033756,-832.0,0.00039802,2]
[394255374,1763409033766,-830.0,0.00039851,2]
[394255376,1763409033776,-169.45,0.00039863,2]
[394255378,1763409033787,-169.45,0.00039863,2]
[394255379,1763409033797,-169.45,0.00039863,2]
[394255381,1763409033808,-169.45,0.00039863,2]
[394255383,1763409033817,-169.45,0.00039863,2]
[394255385,1763409033826,-169.45,0.00039863,2]
[394255387,1763409033836,-178.0,0.0004,2]
[394255389,1763409033845,-2562.0,0.0004,2]
[394255391,1763409033854,-2562.0,0.0004,2]
[394255393,1763409033866,-2562.0,0.0004,2]
[394255395,1763409033875,-2562.0,0.0004,2]
[394255396,1763409033885,-2562.0,0.0004,2]
[394255398,1763409033895,-2562.0,0.0004,2]
[394255400,1763409033904,-2562.0,0.0004,2]
[394255402,1763409033914,-2562.0,0.0004,2]
[394255404,1763409033924,-2562.0,0.0004,2]
[394255406,1763409033933,-2562.0,0.0004,2]
[394255408,1763409033942,-168.0,0.00040199,2]
[394255409,1763409033952,-1000.0,0.00040264,2]
[394255411,1763409033961,-1865.28100441,0.00040273,20]
[394255413,1763409033970,-400.0,0.000404,14]
[394255415,1763409033980,-177.54630722,0.00040496,7]
[394255417,1763409033989,-230.63398895,0.00040496,15]
[394255419,1763409033998,-220.82045347,0.00040496,31]
[394255420,1763409034008,-500.0,0.00040496,2]
[394255421,1763409034017,-500.0,0.00040496,31]
[394255422,1763409034027,-500.0,0.00040496,2]
[394255423,1763409034036,-500.0,0.00040496,31]
[394255424,1763409034047,-500.0,0.00040496,31]
[394255425,1763409034056,-500.0,0.00040496,2]
[394255426,1763409034065,-500.0,0.00040496,31]
[394255427,1763409034074,-500.0,0.00040496,31]
[394255428,1763409034084,-500.0,0.00040496,31]
[394255429,1763409034093,-245.68115005,0.00040496,2]
[394255430,1763409034103,-163.69594251,0.00040496,31]
[394255431,1763409034115,-500.0,0.00040496,31]
[394255432,1763409034125,-364.99745327,0.00040496,31]
[394255433,1763409034137,-500.0,0.00040496,31]
[394255434,1763409034147,-500.0,0.00040496,31]
[394255435,1763409034157,-500.0,0.00040496,31]
[394255436,1763409034166,-500.0,0.00040496,31]
[394255437,1763409034176,-500.0,0.00040496,31]
[394255438,1763409034186,-500.0,0.00040496,31]
[394255439,1763409034195,-500.0,0.00040496,31]
[394255440,1763409034204,-500.0,0.00040496,31]
[394255441,1763409034214,-500.0,0.00040496,31]
[394255442,1763409034224,-500.0,0.00040496,31]
[394255443,1763409034234,-500.0,0.00040496,31]
[394255444,1763409034243,-500.0,0.00040496,31]
[394255445,1763409034252,-500.0,0.00040496,31]
[394255446,1763409034262,-500.0,0.00040496,31]
[394255447,1763409034272,-500.0,0.00040496,31]
[394255448,1763409034282,-500.0,0.00040496,31]
[394255449,1763409034291,-500.0,0.00040496,31]
[394255450,1763409034301,-500.0,0.00040496,31]
[394255451,1763409034317,-500.0,0.00040496,31]
[394255452,1763409034327,-500.0,0.00040496,31]
[394255453,1763409034337,-500.0,0.00040496,31]
[394255454,1763409034348,-500.0,0.00040496,31]
[394255455,1763409034358,-500.0,0.00040496,31]
[394255456,1763409034375,-500.0,0.00040496,31]
[394255457,1763409034386,-500.0,0.00040496,31]
[394255458,1763409034396,-500.0,0.00040496,31]
[394255459,1763409034407,-500.0,0.00040496,31]
[394255460,1763409034417,-500.0,0.00040496,31]
[394255461,1763409034426,-200.0,0.00040496,31]
[394255462,1763409034436,-1848.7318569,0.00040497,2]
[394255463,1763409034445,-9660.7082101,0.00040497,2]
[394255464,1763409034455,-110724.30336785,0.00040497,2]
[394255465,1763409034575,-7747.96839166,0.00040497,2]
[394255466,1763409034588,-2313.25,0.00040497,2]
[394255467,1763409034599,-4944.07886382,0.00040497,2]
[394255468,1763409034615,-925.2396,0.00040497,2]
[394255469,1763409034627,-737.05343386,0.00040497,2]
[394255470,1763409034639,-1012.108084,0.00040497,2]
[394255471,1763409034654,-1530.0003,0.00040497,2]
[394255472,1763409034665,-358.38,0.00040497,2]
[394255473,1763409034681,-13815.0,0.00040497,2]
[394255476,1763409038282,-166.66,0.00037686,30]
[394255477,1763409038291,-166.66,0.0003848,30]
[394255478,1763409038302,-166.66,0.00039273,30]
[394255479,1763409038317,-519.01697079,0.00040497,2]
[394255480,1763409038329,-423.82310137,0.00040497,2]
[394255481,1763409038340,-2629.97761171,0.00040497,2]
[394255482,1763409038354,-308.0825582,0.00040497,2]
[394255483,1763409038365,-400.96538873,0.00040497,2]
[394255484,1763409038376,-2701.79194908,0.00040497,2]
[394255498,1763409039937,-672.75912815,0.00040173,2]
[394255499,1763409039950,-112.24087185,0.00040173,2]
[394255500,1763409039963,-4342.84612055,0.00040497,2]
[394255501,1763409039975,-912.18879194,0.00040497,2]
[394255502,1763409039995,-1915.6044145,0.00040497,2]
[394255503,1763409040006,-9242.5333,0.00040497,2]
[394255504,1763409040018,-1845.0,0.00040497,2]
[394255505,1763409040049,-52876.64712594,0.00040497,2]
[394255506,1763409040059,-1161.5239599,0.00040497,2]
[394255507,1763409040068,-4435.5130071,0.00040497,2]
[394255508,1763409040077,-7544.9440486,0.00040497,2]
[394255509,1763409040086,-6502.0104224,0.00040497,2]
[394255510,1763409040095,-900.0,0.000405,14]
[394255511,1763409040104,-1400.0,0.000406,14]
[394255512,1763409040114,-872.8,0.00040618,2]
[394255513,1763409040128,-166.66,0.00040636,2]
[394255514,1763409040137,-2566.66948,0.0004068,5]
[394255515,1763409040147,-167.79,0.00040685,2]
[394255516,1763409040156,-338.9,0.00040685,2]
[394255517,1763409040166,-1900.0,0.000407,14]
[394255518,1763409040179,-2400.0,0.000408,14]
[394255519,1763409040189,-171.30078188,0.00040855,15]
[394255520,1763409040199,-262.87,0.00040883,120]
[394255521,1763409040209,-1000.0,0.00040895,2]
[394255522,1763409040220,-2500.0,0.00040895,2]
[394255523,1763409040230,-214.4,0.000409,30]
[394255524,1763409040240,-400.0,0.000409,14]
[394255525,1763409040249,-317.5699112,0.00040955,2]
[394255526,1763409040260,-27523.1217682,0.00040955,2]
[394255527,1763409040269,-9013.6282845,0.00040955,2]
[394255528,1763409040279,-500.0,0.00040973,5]
[394255529,1763409040289,-501.67582389,0.00040973,5]
[394255530,1763409040299,-551.2239,0.00040975,120]
[394255531,1763409040314,-151.0,0.00040982,14]
[394255532,1763409040324,-1000.0,0.00040985,2]
[394255533,1763409040334,-33327.7153,0.00040985,2]
[394255534,1763409040344,-1000.0,0.00040985,120]
[394255535,1763409040355,-171.30078188,0.00040993,15]
[394255536,1763409040365,-154.89724477,0.00040995,2]
[394255537,1763409040381,-500.0,0.00040999,30]
[394255539,1763409040393,-500.0,0.00040999,7]
[394255540,1763409040403,-488.0,0.00040999,7]
[394255541,1763409040412,-50000.0,0.00041,41]
[394255542,1763409040421,-178.0,0.00041,30]
[394255543,1763409040430,-169855.86606718,0.00041065,4]
[394255544,1763409040451,-626.61871805,0.00041065,4]
[394255545,1763409040462,-4663.45325746,0.00041065,4]
[394255546,1763409040477,-461.672767,0.00041065,4]
[394255547,1763409040488,-1442.2,0.00041065,4]
[394255548,1763409040499,-475.73186308,0.00041065,4]
[394255549,1763409040515,-1203.2381,0.00040995,2]
[394255550,1763409040525,-292.20758133,0.00041065,4]
[394255551,1763409040536,-5795.45543174,0.00041065,4]
[394255600,1763409043074,-1483.45419461,0.00041065,4]
[394255602,1763409043285,-785.0,0.00040205,7]
[394255603,1763409043295,-136.0,0.00041065,4]
[394255604,1763409043317,-9839.95090001,0.00041065,4]
[394255605,1763409043330,-15265.01843956,0.00041065,4]
[394255606,1763409043381,-265.57416943,0.00041065,4]
[394255607,1763409043409,-169.45,0.00039863,2]
[394255608,1763409043421,-200.326,0.00041065,4]
[394255609,1763409043434,-2685.19,0.00041065,4]
[394255610,1763409043570,-1569.79333564,0.00041065,4]
[394255611,1763409043585,-56703.82863997,0.00041065,4]
[394255612,1763409043598,-22403.43088889,0.00041065,4]
[394255617,1763409047564,-287.99,0.00040745,2]
[394255618,1763409047574,-2593.29657548,0.00041065,4]
[394255619,1763409047585,-4549.35478158,0.00041065,4]
[394255620,1763409047710,-42859.61593818,0.00041065,4]
[394255621,1763409047815,-374.96223001,0.00041065,4]
[394255627,1763409076865,151.0,0.00017988,2]
[394255628,1763409077465,151.0,0.00017988,2]
[394255629,1763409078416,151.0,0.00017988,2]
[394255630,1763409079127,151.0,0.00017988,2]
[394255631,1763409079627,151.0,0.00017988,2]
[394255632,1763409080236,151.0,0.00017988,2]
[394255633,1763409080825,151.0,0.00017988,2]
[394255634,1763409081440,151.0,0.00017988,2]
[394255635,1763409082037,151.0,0.00017988,2]
[394255636,1763409082636,151.0,0.00017988,2]
[394255637,1763409083266,151.0,0.00017988,2]
[394255638,1763409083871,151.0,0.00017988,2]
[394255639,1763409084476,151.0,0.00017988,2]
[394255640,1763409085088,151.0,0.00017988,2]
[394255641,1763409085687,151.0,0.00017988,2]
[394255642,1763409086292,151.0,0.00017988,2]
[394255643,1763409086925,151.0,0.00017988,2]
[394255644,1763409087545,151.0,0.00017988,2]
[394255645,1763409088163,250.47608342,0.00017988,2]
[394255681,1763409491935,1483.4924328,0.00017,2]
[394255813,1763410232136,-156.58,0.00023324,2]
[394255815,1763410232145,-496.0,0.00023324,2]
[394255817,1763410232155,-374.3730868,0.00025655,2]
[394255821,1763410232190,-661.32078905,0.00025655,2]
[394255831,1763410232300,-164.30612415,0.00025655,2]
[394255832,1763410232310,-1200.0,0.00025655,2]
[394255833,1763410232319,-300.0,0.00025655,2]
[394255834,1763410232329,-1150.83,0.00025656,2]
[394255835,1763410232338,-156.58,0.00025826,7]
[394255836,1763410232347,-1150.83,0.0002593,2]
[394255838,1763410232356,-1150.83,0.00026204,2]
[394255839,1763410232366,-1150.83,0.00026478,2]
[394255841,1763410232375,-1150.83,0.00026752,2]
[394255843,1763410232385,-1150.83,0.00027026,2]
[394255846,1763410232394,-1150.83,0.000273,2]
[394255848,1763410232403,-1150.86632183,0.00027574,14]
[394255849,1763410232412,-300.0,0.00027746,2]
[394255851,1763410232422,-340.0,0.00027775,2]
[394255853,1763410232432,-420.0,0.00027775,2]
[394255855,1763410232441,-1680.0,0.00027899,2]
[394255857,1763410232451,-300.0,0.00028222,119]
[394255860,1763410232460,-156.58,0.00028328,30]
[394255862,1763410232469,-174.0,0.0003,14]
[394255864,1763410232479,-1141.0,0.0003034,2]
[394255865,1763410232488,-4284.77,0.0003083,2]
[394255868,1763410232498,-2434.55,0.0003083,10]
[394255870,1763410232507,-9226.6,0.0003083,2]
[394255872,1763410232517,-156.58,0.0003083,30]
[394255874,1763410232526,-300.0,0.00031643,2]
[394255876,1763410232536,-174.0,0.00031644,14]
[394255878,1763410232548,-6014.61,0.00031644,2]
[394255881,1763410232558,-166.38745637,0.00031999,2]
[394255883,1763410232567,-365.14208326,0.00032,120]
[394255885,1763410232577,-1027.49062373,0.00032,120]
[394255887,1763410232586,-299.39869359,0.00032,120]
[394255888,1763410232595,-188.04956781,0.00032,120]
[394255890,1763410232605,-200.78923967,0.00032,120]
[394255892,1763410232615,-267.41922561,0.00032,120]
[394255893,1763410232624,-206.67055926,0.00032,120]
[394255894,1763410232634,-393.56842195,0.00032,120]
[394255895,1763410232644,-175.27876095,0.00032,120]
[394255896,1763410232653,-193.4806984,0.00032,120]
[394255897,1763410232662,-9999.99,0.00032,2]
[394255898,1763410232672,-1313.08,0.00032542,2]
[394255899,1763410232682,-365.14208326,0.00033,120]
[394255900,1763410232692,-477.3430219,0.00033,120]
[394255901,1763410232707,-463.83999999,0.00033,120]
[394255902,1763410232719,-86.30760184,0.00033,120]
[394255903,1763410232727,-211.69239816,0.00033,120]
[394255904,1763410232747,-87.70629543,0.00033,120]
[394255905,1763410232758,-393.56842195,0.00033,120]
[394255906,1763410232767,-193.4806984,0.00033,120]
[394255907,1763410232780,-174.0,0.00033226,30]
[394255908,1763410232791,-156.58,0.00033332,30]
[394255909,1763410232800,-365.14208326,0.000339,120]
[394255910,1763410232809,-17.85750095,0.000339,120]
[394255918,1763410238096,-1009.63312278,0.000339,120]
[394255919,1763410238107,-299.39869359,0.000339,120]
[394255920,1763410238117,-393.56842195,0.000339,120]
[394255921,1763410238127,-193.4806984,0.000339,120]
[394255922,1763410238136,-365.14208326,0.00035,120]
[394255923,1763410238145,-547.0148736,0.00035,120]
[394255924,1763410238157,-480.47575013,0.00035,120]
[394255925,1763410238167,-299.39869359,0.00035,120]
[394255926,1763410238176,-393.56842195,0.00035,120]
[394255927,1763410238186,-170.79,0.00035009,120]
[394255928,1763410238196,-508.55729508,0.00035153,2]
[394255929,1763410238216,-1279.26270492,0.00035153,2]
[394255930,1763410238226,-694.21729508,0.00035209,2]
[394255931,1763410238241,-1167.35818453,0.00035209,2]
[394255932,1763410238252,-466.75066597,0.00035209,2]
[394255933,1763410238423,-173.91385442,0.00035209,2]
[394255934,1763410238433,-9013.78614558,0.0003521,2]
[394255962,1763410240141,-902.08077344,0.0003521,2]
[394255963,1763410240195,-1383.54308098,0.0003521,2]
[394255964,1763410240206,-918.29691902,0.00035234,120]
[394255966,1763410240561,-1832.70308098,0.00035234,120]
[394255967,1763410240571,-150.0,0.00035519,2]
[394255968,1763410240581,-204.25,0.00035891,5]
[394255970,1763410240595,-365.14208326,0.00036,120]
[394255971,1763410240604,-1027.49062373,0.00036,120]
[394255972,1763410240614,-299.39869359,0.00036,120]
[394255973,1763410240623,-393.56842195,0.00036,120]
[394255974,1763410240634,-166.88,0.00036473,45]
[394255976,1763410240643,-99.52136738,0.00036473,5]
[394255977,1763410240659,-400.47863262,0.00036473,5]
[394255978,1763410240668,-500.0,0.00036473,5]
[394255979,1763410240678,-1272.636,0.00036473,45]
[394255980,1763410240687,-36.07571619,0.00036488,30]
[394255981,1763410240700,-290.80846488,0.00036488,30]
[394256033,1763410243324,-156.3254563,0.000338,2]
[394256035,1763410243336,-173.11581893,0.00036488,30]
[394256036,1763410243346,-500.0,0.00036488,30]
[394256037,1763410243358,-500.0,0.00036488,30]
[394256038,1763410243367,-500.0,0.00036488,30]
[394256039,1763410243379,-500.0,0.00036488,30]
[394256040,1763410243388,-500.0,0.00036488,30]
[394256041,1763410243398,-500.0,0.00036488,30]
[394256042,1763410243408,-500.0,0.00036488,30]
[394256043,1763410243418,-500.0,0.00036488,30]
[394256044,1763410243428,-500.0,0.00036488,30]
[394256045,1763410243442,-500.0,0.00036488,30]
[394256046,1763410243453,-500.0,0.00036488,30]
[394256047,1763410243465,-500.0,0.00036488,30]
[394256048,1763410243475,-500.0,0.00036488,30]
[394256049,1763410243486,-500.0,0.00036488,30]
[394256050,1763410243497,-500.0,0.00036488,30]
[394256051,1763410243508,-900.0,0.00036488,30]
[394256053,1763410243821,-470.55872477,0.00036488,30]
[394256054,1763410243838,-300.27264999,0.00036488,30]
[394256055,1763410243848,-301.30810002,0.00036488,30]
[394256056,1763410243860,-198.69189998,0.00036488,30]
[394256057,1763410243869,-202.58810002,0.00036488,30]
[394256058,1763410243880,-297.41189998,0.00036488,30]
[394256059,1763410243889,-500.0,0.00036488,30]
[394256060,1763410243899,-500.0,0.00036488,30]
[394256061,1763410243909,-500.0,0.00036488,30]
[394256062,1763410243918,-500.0,0.00036488,30]
[394256063,1763410243932,-500.0,0.00036488,30]
[394256064,1763410243942,-768.73233315,0.00036488,30]
[394256065,1763410243951,-500.0,0.00036488,30]
[394256066,1763410243961,-500.0,0.00036488,30]
[394256067,1763410243970,-500.0,0.00036488,30]
[394256068,1763410243979,-500.0,0.00036488,30]
[394256069,1763410243989,-500.0,0.00036488,30]
[394256070,1763410243999,-500.0,0.00036488,30]
[394256071,1763410244008,-500.0,0.00036488,30]
[394256072,1763410244017,-500.0,0.00036488,30]
[394256073,1763410244028,-500.0,0.00036488,30]
[394256074,1763410244037,-500.0,0.00036488,30]
[394256075,1763410244048,-500.0,0.00036488,30]
[394256076,1763410244057,-4.97765835,0.00036488,30]
[394256077,1763410244073,-495.02234165,0.00036488,30]
[394256078,1763410244083,-500.0,0.00036488,30]
[394256079,1763410244093,-500.0,0.00036488,30]
[394256081,1763410244102,-514.5510166,0.00036488,30]
[394256082,1763410244111,-500.0,0.00036488,30]
[394256084,1763410244121,-500.5298232,0.00036488,30]
[394256085,1763410244130,-500.0,0.00036488,30]
[394256086,1763410244139,-578.92354506,0.00036488,30]
[394256088,1763410244151,-264.75368951,0.00036488,30]
[394256089,1763410244160,-500.0,0.00036488,30]
[394256090,1763410244170,-500.0,0.00036488,30]
[394256091,1763410244179,-500.0,0.00036488,30]
[394256092,1763410244189,-600.0,0.00036488,30]
[394256093,1763410244198,-2000.0,0.00036845,2]
[394256094,1763410244208,-150.0,0.00036962,7]
[394256095,1763410244218,-150.0,0.00036962,7]
[394256096,1763410244228,-150.0,0.00036962,7]
[394256097,1763410244237,-150.0,0.00036962,7]
[394256098,1763410244247,-150.0,0.00036962,7]
[394256099,1763410244256,-150.0,0.00036962,7]
[394256100,1763410244266,-163.34160733,0.00036962,7]
[394256101,1763410244275,-150.0,0.00036962,7]
[394256102,1763410244284,-150.0,0.00036962,7]
[394256103,1763410244294,-150.0,0.00036962,7]
[394256104,1763410244307,-150.0,0.00036962,7]
[394256105,1763410244317,-150.0,0.00036962,7]
[394256106,1763410244327,-150.0,0.00036962,7]
[394256107,1763410244336,-150.0,0.00036962,7]
[394256108,1763410244345,-150.0,0.00036962,7]
[394256109,1763410244354,-150.0,0.00036962,7]
[394256110,1763410244364,-7839.6,0.00036962,2]
[394256111,1763410244373,-1250.0,0.00037,2]
[394256112,1763410244382,-163.34160733,0.00037003,7]
[394256113,1763410244391,-150.0,0.00037006,7]
[394256114,1763410244400,-1000.0,0.00037021,5]
[394256115,1763410244410,-1000.0,0.00037021,5]
[394256116,1763410244420,-150.0,0.00037023,7]
[394256117,1763410244429,-150.0,0.00037023,7]
[394256118,1763410244439,-150.0,0.00037031,7]
[394256119,1763410244448,-150.0,0.00037038,7]
[394256120,1763410244458,-163.34160733,0.00037045,7]
[394256121,1763410244467,-150.0,0.00037045,7]
[394256122,1763410244477,-150.0,0.0003705,7]
[394256123,1763410244486,-150.0,0.00037084,7]
[394256124,1763410244496,-150.0,0.00037084,7]
[394256125,1763410244505,-163.34160733,0.00037086,7]
[394256126,1763410244514,-150.0,0.00037094,7]
[394256127,1763410244523,-1027.49062373,0.000371,120]
[394256128,1763410244533,-150.0,0.00037101,7]
[394256129,1763410244543,-150.0,0.00037103,7]
[394256130,1763410244554,-150.0,0.00037114,7]
[394256131,1763410244563,-163.34160733,0.00037128,7]
[394256132,1763410244573,-150.0,0.00037129,7]
[394256133,1763410244583,-150.0,0.00037138,7]
[394256134,1763410244592,-150.0,0.00037146,7]
[394256135,1763410244602,-150.0,0.00037146,7]
[394256136,1763410244612,-163.34160733,0.00037169,7]
[394256137,1763410244622,-150.0,0.0003717,7]
[394256138,1763410244632,-150.0,0.00037182,7]
[394256139,1763410244642,-150.0,0.0003719,7]
[394256140,1763410244651,-150.0,0.00037207,7]
[394256141,1763410244660,-150.0,0.00037207,7]
[394256142,1763410244670,-163.34160733,0.00037211,7]
[394256143,1763410244679,-150.0,0.00037213,7]
[394256144,1763410244689,-150.0,0.00037227,7]
[394256145,1763410244701,-150.0,0.00037235,7]
[394256146,1763410244711,-150.0,0.0003724,7]
[394256147,1763410244721,-150.0,0.00037245,7]
[394256148,1763410244730,-163.34160733,0.00037252,7]
[394256149,1763410244740,-150.0,0.00037255,7]
[394256150,1763410244750,-150.0,0.00037266,7]
[394256151,1763410244759,-150.0,0.00037268,7]
[394256152,1763410244771,-150.0,0.00037268,7]
[394256153,1763410244781,-150.0,0.00037271,7]
[394256154,1763410244791,-163.34160733,0.00037294,7]
[394256155,1763410244803,-150.0,0.00037297,7]
[394256156,1763410244812,-150.0,0.0003731,7]
[394256157,1763410244822,-150.0,0.00037315,7]
[394256158,1763410244831,-150.0,0.00037329,7]
[394256159,1763410244840,-150.0,0.00037329,7]
[394256160,1763410244850,-163.34160733,0.00037335,7]
[394256161,1763410244859,-150.0,0.00037342,7]
[394256162,1763410244868,-1008.1092991,0.00037355,30]
[394256163,1763410244878,-150.0,0.00037359,7]
[394256164,1763410244887,-150.0,0.00037372,7]
[394256165,1763410244896,-163.34160733,0.00037376,7]
[394256166,1763410244906,-150.0,0.00037379,7]
[394256167,1763410244915,-150.0,0.00037381,7]
[394256168,1763410244924,-150.0,0.00037386,7]
[394256169,1763410244934,-150.0,0.00037391,7]
[394256170,1763410244943,-150.0,0.00037391,7]
[394256171,1763410244953,-150.0,0.00037403,7]
[394256172,1763410244962,-163.34160733,0.00037418,7]
[394256173,1763410244971,-150.0,0.00037418,7]
[394256174,1763410244980,-150.0,0.00037447,7]
[394256175,1763410244989,-150.0,0.00037449,7]
[394256176,1763410244999,-150.0,0.00037452,7]
[394256177,1763410245008,-150.0,0.00037452,7]
[394256178,1763410245018,-163.34160733,0.00037459,7]
[394256179,1763410245027,-150.0,0.00037465,7]
[394256180,1763410245036,-150.0,0.00037492,7]
[394256181,1763410245046,-150.0,0.00037494,7]
[394256182,1763410245055,-163.34160733,0.00037501,7]
[394256183,1763410245064,-150.0,0.00037509,7]
[394256184,1763410245075,-150.0,0.00037513,7]
[394256185,1763410245084,-150.0,0.00037513,7]
[394256186,1763410245093,-150.0,0.00037519,7]
[394256187,1763410245103,-150.0,0.00037528,7]
[394256188,1763410245112,-150.0,0.00037536,7]
[394256189,1763410245122,-163.34160733,0.00037542,7]
[394256190,1763410245131,-150.0,0.00037548,7]
[394256191,1763410245140,-150.0,0.00037548,7]
[394256192,1763410245149,-869.33093842,0.00037568,5]
[394256193,1763410245158,-150.0,0.0003757,7]
[394256194,1763410245168,-150.0,0.00037575,7]
[394256195,1763410245177,-150.0,0.00037575,7]
[394256196,1763410245186,-150.0,0.0003758,7]
[394256197,1763410245196,-163.34160733,0.00037584,7]
[394256198,1763410245205,-150.0,0.00037588,7]
[394256199,1763410245214,-150.0,0.00037624,7]
[394256200,1763410245223,-163.34160733,0.00037625,7]
[394256201,1763410245232,-150.0,0.00037632,7]
[394256202,1763410245241,-150.0,0.00037636,7]
[394256203,1763410245250,-150.0,0.00037636,7]
[394256204,1763410245260,-500.0,0.00037642,2]
[394256205,1763410245269,-150.0,0.00037646,7]
[394256206,1763410245279,-150.0,0.00037646,7]
[394256207,1763410245288,-150.0,0.00037658,7]
[394256208,1763410245298,-163.34160733,0.00037667,7]
[394256209,1763410245307,-150.0,0.00037668,7]
[394256210,1763410245318,-150.0,0.0003767,7]
[394256211,1763410245327,-150.0,0.00037697,7]
[394256212,1763410245337,-150.0,0.00037697,7]
[394256213,1763410245347,-163.34160733,0.00037708,7]
[394256214,1763410245356,-150.0,0.00037712,7]
[394256215,1763410245365,-150.0,0.00037716,7]
[394256216,1763410245375,-150.0,0.00037722,7]
[394256217,1763410245384,-150.0,0.00037727,7]
[394256218,1763410245393,-163.34160733,0.0003775,7]
[394256219,1763410245404,-150.0,0.00037757,7]
[394256220,1763410245413,-150.0,0.00037758,7]
[394256221,1763410245422,-150.0,0.00037758,7]
[394256222,1763410245432,-150.0,0.00037783,7]
[394256223,1763410245442,-150.0,0.00037783,7]
[394256224,1763410245451,-163.34160733,0.00037791,7]
[394256225,1763410245460,-150.0,0.00037797,7]
[394256226,1763410245470,-150.0,0.00037798,7]
[394256227,1763410245480,-150.0,0.000378,7]
[394256228,1763410245489,-150.0,0.00037801,7]
[394256229,1763410245499,-150.0,0.00037811,7]
[394256230,1763410245508,-150.0,0.0003782,7]
[394256231,1763410245518,-150.0,0.0003782,7]
[394256232,1763410245527,-163.34160733,0.00037833,7]
[394256233,1763410245537,-150.0,0.00037842,7]
[394256234,1763410245546,-150.0,0.00037845,7]
[394256235,1763410245557,-150.0,0.00037867,7]
[394256236,1763410245566,-163.34160733,0.00037874,7]
[394256237,1763410245576,-150.0,0.00037874,7]
[394256238,1763410245585,-150.0,0.00037881,7]
[394256239,1763410245594,-150.0,0.00037881,7]
[394256240,1763410245603,-150.0,0.00037884,7]
[394256241,1763410245613,-150.0,0.00037889,7]
[394256242,1763410245622,-618.82,0.00037895,2]
[394256243,1763410245633,-163.34160733,0.00037916,7]